fUSD/lending_fUSD_20250206
["ID","MTS","AMOUNT","RATE_DAILY","PERIOD"]
[351930295,1738847454994,-756.07,0.00019315,3]
[351930296,1738847455003,-500.0,0.00019315,3]
[351930297,1738847455013,-500.0,0.00019315,3]
[351930298,1738847455023,-1319.56,0.00019315,3]
[351930299,1738847455033,-1063.13,0.00019315,3]
[351930300,1738847455045,-504.04591318,0.00019315,3]
[351930301,1738847455055,-500.0,0.00019315,3]
[351930302,1738847455066,-503.00902072,0.00019315,3]
[351930303,1738847455077,-958.14,0.00019315,3]
[351930304,1738847455087,-500.0,0.00019315,3]
[351930305,1738847455097,-503.7878425,0.00019315,3]
[351930306,1738847455106,-519.43,0.00019315,3]
[351930307,1738847455116,-982.29,0.00019315,3]
[351930308,1738847455126,-698.23,0.00019315,3]
[351930309,1738847455136,-729.23,0.00019315,3]
[351930310,1738847455146,-500.0,0.00019315,3]
[351930311,1738847455155,-520.8397869,0.00019315,3]
[351930312,1738847455165,-500.0,0.00019315,3]
[351930313,1738847455175,-992.66,0.00019315,3]
[351930314,1738847455185,-832.08,0.00019315,3]
[351930315,1738847455194,-500.0,0.00019315,3]
[351930316,1738847455204,-500.0,0.00019315,3]
[351930317,1738847455214,-500.0,0.00019315,3]
[351930318,1738847455223,-1231.93,0.00019315,3]
[351930319,1738847455232,-1380.26,0.00019315,3]
[351930320,1738847455243,-906.53,0.00019315,3]
[351930321,1738847455252,-500.0,0.00019315,3]
[351930322,1738847455262,-500.0,0.00019315,3]
[351930323,1738847455271,-500.0,0.00019315,3]
[351930324,1738847455281,-500.0,0.00019315,3]
[351930325,1738847455290,-617.55530234,0.00019315,3]
[351930326,1738847455300,-500.0,0.00019315,3]
[351930327,1738847455310,-308.88,0.00019315,3]
[351930328,1738847455319,-500.0,0.00019315,3]
[351930329,1738847455329,-1036.51,0.00019315,3]
[351930330,1738847455338,-500.0,0.00019315,3]
[351930331,1738847455347,-501.6223176,0.00019315,3]
[351930332,1738847455357,-623.01,0.00019315,3]
[351930333,1738847455366,-500.0,0.00019315,3]
[351930334,1738847455376,-1663.04,0.00019315,3]
[351930335,1738847455387,-647.09,0.00019315,3]
[351930336,1738847455397,-707.13,0.00019315,3]
[351930337,1738847455406,-647.04,0.00019315,3]
[351930338,1738847455416,-764.69,0.00019315,3]
[351930339,1738847455425,-507.76482955,0.00019315,3]
[351930340,1738847455434,-500.0,0.00019315,3]
[351930341,1738847455443,-730.48,0.00019315,3]
[351930342,1738847455452,-500.0,0.00019315,3]
[351930343,1738847455462,-955.0,0.00019315,3]
[351930344,1738847455471,-500.0,0.00019315,2]
[351930345,1738847455482,-1569.1,0.00019315,3]
[351930346,1738847455491,-500.0,0.00019315,3]
[351930347,1738847455500,-1403.55,0.00019315,3]
[351930348,1738847455510,-500.0,0.00019315,3]
[351930349,1738847455519,-555.4,0.00019315,2]
[351930350,1738847455528,-529.65,0.00019315,3]
[351930351,1738847455537,-500.0,0.00019315,3]
[351930352,1738847455547,-516.90635257,0.00019315,3]
[351930353,1738847455556,-912.9,0.00019315,3]
[351930354,1738847455565,-500.0,0.00019315,3]
[351930355,1738847455575,-500.0,0.00019315,3]
[351930356,1738847455584,-686.82,0.00019315,3]
[351930357,1738847455593,-500.0,0.00019315,3]
[351930358,1738847455602,-500.0,0.00019315,3]
[351930359,1738847455611,-1183.86,0.00019315,3]
[351930360,1738847455621,-500.0,0.00019315,3]
[351930361,1738847455630,-1229.89,0.00019315,3]
[351930362,1738847455639,-711.88,0.00019315,3]
[351930363,1738847455649,-802.37,0.00019315,3]
[351930364,1738847455659,-500.0,0.00019315,3]
[351930365,1738847455668,-1148.91,0.00019315,3]
[351930366,1738847455677,-151.65,0.00019315,2]
[351930367,1738847455686,-369.06,0.00019315,2]
[351930368,1738847455696,-352.54876365,0.00019338,3]
[351930369,1738847455705,-320.17144108,0.00019338,2]
[351930370,1738847455714,-500.0,0.00019338,3]
[351930371,1738847455724,-500.0,0.00019338,3]
[351930372,1738847455733,-910.7,0.00019338,3]
[351930373,1738847455743,-155.05886639,0.00019367,2]
[351930374,1738847455752,-2300.0,0.000194,7]
[351930375,1738847455761,-166.04148688,0.000194,2]
[351930376,1738847455770,-723.53,0.00019424,2]
[351930377,1738847455780,-923.23,0.00019451,3]
[351930378,1738847455789,-1195.42,0.00019451,3]
[351930379,1738847455799,-913.18,0.00019451,3]
[351930380,1738847455808,-500.0,0.00019451,3]
[351930381,1738847455817,-500.0,0.00019451,3]
[351930382,1738847455827,-500.0,0.00019451,3]
[351930383,1738847455836,-1502.46,0.00019451,3]
[351930384,1738847455846,-500.0,0.00019451,3]
[351930385,1738847455856,-1376.05,0.00019451,3]
[351930386,1738847455865,-1528.59,0.00019451,3]
[351930387,1738847455875,-1110.75,0.00019451,3]
[351930388,1738847455885,-1258.35,0.00019451,3]
[351930389,1738847455895,-1149.66,0.00019451,3]
[351930390,1738847455907,-2890.84,0.00019451,3]
[351930391,1738847455917,-1446.46,0.00019451,3]
[351930392,1738847455926,-910.7,0.00019451,3]
[351930393,1738847455938,-1469.97,0.00019451,3]
[351930394,1738847455947,-783.6,0.00019451,3]
[351930395,1738847455957,-921.09,0.00019451,3]
[351930396,1738847455966,-1150.26,0.00019451,3]
[351930397,1738847455977,-500.0,0.00019451,3]
[351930398,1738847455987,-986.48,0.00019451,3]
[351930399,1738847455996,-1234.33,0.00019451,3]
[351930400,1738847456006,-1208.62,0.00019451,3]
[351930401,1738847456015,-1027.0,0.00019451,3]
[351930402,1738847456024,-599.09,0.00019451,3]
[351930403,1738847456035,-593.49565109,0.00019452,3]
[351930404,1738847456045,-500.0,0.00019452,3]
[351930405,1738847456055,-500.62352001,0.00019452,3]
[351930406,1738847456064,-500.0,0.00019452,3]
[351930407,1738847456074,-500.0,0.00019452,5]
[351930408,1738847456083,-500.0,0.00019452,3]
[351930409,1738847456093,-587.65,0.00019452,3]
[351930410,1738847456103,-500.0,0.00019452,3]
[351930411,1738847456112,-500.0,0.00019452,3]
[351930412,1738847456122,-605.72,0.00019452,3]
[351930413,1738847456131,-500.0,0.00019452,3]
[351930414,1738847456141,-173.2521789,0.00019452,3]
[351930415,1738847456151,-500.0,0.00019452,3]
[351930416,1738847456161,-574.22,0.00019452,3]
[351930417,1738847456170,-500.0,0.00019452,3]
[351930418,1738847456179,-500.0,0.00019452,3]
[351930419,1738847456189,-500.0,0.00019452,3]
[351930420,1738847456198,-572.86,0.00019452,3]
[351930421,1738847456208,-500.0,0.00019452,3]
[351930422,1738847456218,-500.0,0.00019452,3]
[351930423,1738847456227,-500.0,0.00019452,3]
[351930424,1738847456236,-500.0,0.00019452,3]
[351930425,1738847456246,-500.0,0.00019452,3]
[351930426,1738847456255,-500.0,0.00019452,3]
[351930427,1738847456265,-377.61760858,0.00019452,3]
[351930428,1738847456275,-500.0,0.00019452,3]
[351930429,1738847456285,-500.0,0.00019452,3]
[351930430,1738847456294,-500.0,0.00019452,3]
[351930431,1738847456304,-500.0,0.00019452,3]
[351930432,1738847456313,-500.0,0.00019452,3]
[351930433,1738847456323,-500.0,0.00019452,3]
[351930434,1738847456333,-500.0,0.00019452,3]
[351930435,1738847456343,-500.0,0.00019452,3]
[351930436,1738847456354,-500.0,0.00019452,3]
[351930437,1738847456364,-733.01,0.00019452,3]
[351930438,1738847456373,-500.0,0.00019452,3]
[351930439,1738847456383,-500.0,0.00019452,3]
[351930440,1738847456392,-500.0,0.00019452,3]
[351930441,1738847456402,-500.0,0.00019452,3]
[351930442,1738847456411,-873.69,0.00019452,3]
[351930443,1738847456420,-500.0,0.00019452,3]
[351930444,1738847456430,-1084.73,0.00019452,3]
[351930445,1738847456439,-500.0,0.00019452,3]
[351930446,1738847456448,-789.7,0.00019452,3]
[351930447,1738847456458,-552.61,0.00019452,3]
[351930448,1738847456467,-551.46125929,0.00019452,3]
[351930449,1738847456477,-500.0,0.00019452,3]
[351930450,1738847456487,-500.0,0.00019452,3]
[351930451,1738847456496,-587.5813252,0.00019452,3]
[351930452,1738847456506,-846.28,0.00019452,3]
[351930453,1738847456515,-627.65035723,0.00019452,3]
[351930454,1738847456524,-500.0,0.00019452,3]
[351930455,1738847456533,-500.0,0.00019452,3]
[351930456,1738847456542,-500.0,0.00019452,3]
[351930457,1738847456551,-196.11855987,0.00019452,3]
[351930458,1738847456560,-500.0,0.00019452,3]
[351930459,1738847456570,-720.07,0.00019452,3]
[351930460,1738847456579,-500.0,0.00019452,3]
[351930461,1738847456590,-500.0,0.00019452,3]
[351930462,1738847456599,-500.0,0.00019452,3]
[351930463,1738847456610,-500.0,0.00019452,3]
[351930464,1738847456620,-1503.34,0.00019452,3]
[351930465,1738847456629,-500.0,0.00019452,3]
[351930466,1738847456638,-670.88,0.00019452,3]
[351930467,1738847456648,-500.0,0.00019452,3]
[351930468,1738847456657,-500.0,0.00019452,3]
[351930469,1738847456666,-500.0,0.00019452,3]
[351930470,1738847456676,-332.72646896,0.00019452,3]
[351930471,1738847456844,-1338.69,0.00019452,3]
[351930472,1738847456854,-654.93,0.00019452,3]
[351930473,1738847456863,-500.0,0.00019452,3]
[351930474,1738847456873,-500.0,0.00019452,3]
[351930475,1738847456882,-849.97,0.00019452,3]
[351930476,1738847456892,-577.83471371,0.00019452,3]
[351930477,1738847456902,-570.28,0.00019452,3]
[351930478,1738847456913,-500.0,0.00019452,3]
[351930479,1738847456923,-518.99711628,0.00019452,3]
[351930480,1738847456934,-803.55,0.00019452,3]
[351930481,1738847456945,-952.94,0.00019452,3]
[351930482,1738847456954,-526.63,0.00019452,3]
[351930483,1738847456964,-500.0,0.00019452,3]
[351930484,1738847456975,-500.0,0.00019452,3]
[351930485,1738847456990,-812.08,0.00019452,3]
[351930486,1738847457000,-500.0,0.00019452,3]
[351930487,1738847457010,-1110.91,0.00019452,3]
[351930488,1738847457020,-500.0,0.00019452,3]
[351930489,1738847457030,-500.0,0.00019452,3]
[351930490,1738847457040,-500.0,0.00019452,3]
[351930491,1738847457049,-640.02,0.00019452,3]
[351930492,1738847457058,-734.61,0.00019452,3]
[351930493,1738847457068,-500.0,0.00019452,3]
[351930494,1738847457078,-500.0,0.00019452,3]
[351930495,1738847457091,-500.0,0.00019452,3]
[351930496,1738847457102,-500.0,0.00019452,3]
[351930497,1738847457111,-932.5,0.00019452,3]
[351930498,1738847457121,-500.0,0.00019452,3]
[351930499,1738847457131,-500.0,0.00019452,3]
[351930500,1738847457141,-300.0,0.00019452,3]
[351930501,1738847457151,-545.48,0.00019452,3]
[351930502,1738847457160,-621.04,0.00019452,3]
[351930503,1738847457170,-500.0,0.00019452,3]
[351930504,1738847457180,-500.0,0.00019452,3]
[351930505,1738847457191,-500.0,0.00019452,3]
[351930506,1738847457200,-1431.05,0.00019452,3]
[351930507,1738847457210,-500.0,0.00019452,3]
[351930508,1738847457220,-500.0,0.00019452,2]
[351930509,1738847457231,-500.0,0.00019452,3]
[351930510,1738847457241,-500.0,0.00019452,3]
[351930511,1738847457251,-778.62,0.00019452,3]
[351930512,1738847457261,-505.56,0.00019452,3]
[351930513,1738847457271,-500.0,0.00019452,3]
[351930514,1738847457281,-900.16,0.00019452,3]
[351930515,1738847457291,-500.0,0.00019452,3]
[351930516,1738847457302,-500.0,0.00019452,3]
[351930517,1738847457312,-500.0,0.00019452,3]
[351930518,1738847457322,-500.0,0.00019452,3]
[351930519,1738847457332,-500.0,0.00019452,3]
[351930520,1738847457342,-478.08234217,0.00019452,3]
[351930521,1738847457352,-500.0,0.00019452,3]
[351930522,1738847457362,-500.0,0.00019452,3]
[351930523,1738847457372,-507.79,0.00019452,3]
[351930524,1738847457382,-500.0,0.00019452,3]
[351930525,1738847457391,-500.0,0.00019452,3]
[351930526,1738847457400,-628.06,0.00019452,3]
[351930527,1738847457410,-500.0,0.00019452,3]
[351930528,1738847457420,-500.0,0.00019452,3]
[351930529,1738847457430,-500.0,0.00019452,3]
[351930530,1738847457439,-500.0,0.00019452,3]
[351930531,1738847457449,-719.38,0.00019452,3]
[351930532,1738847457459,-500.0,0.00019452,3]
[351930533,1738847457469,-500.0,0.00019452,3]
[351930534,1738847457480,-500.0,0.00019452,3]
[351930535,1738847457490,-500.0,0.00019452,3]
[351930536,1738847457500,-500.0,0.00019452,3]
[351930537,1738847457509,-500.0,0.00019452,3]
[351930538,1738847457519,-500.0,0.00019452,3]
[351930539,1738847457529,-500.0,0.00019452,3]
[351930540,1738847457539,-500.0,0.00019452,3]
[351930541,1738847457548,-1146.61,0.00019452,3]
[351930542,1738847457557,-675.23,0.00019452,3]
[351930543,1738847457569,-500.0,0.00019452,3]
[351930544,1738847457584,-559.57,0.00019452,3]
[351930545,1738847457595,-500.0,0.00019452,3]
[351930546,1738847457605,-500.0,0.00019452,3]
[351930547,1738847457615,-500.0,0.00019452,3]
[351930548,1738847457625,-500.0,0.00019452,3]
[351930549,1738847457635,-502.94026047,0.00019452,3]
[351930550,1738847457644,-500.0,0.00019452,3]
[351930551,1738847457654,-1274.31,0.00019452,3]
[351930552,1738847457663,-569.37,0.00019452,3]
[351930553,1738847457673,-500.0,0.00019452,3]
[351930554,1738847457683,-504.33240458,0.00019452,3]
[351930555,1738847457693,-500.0,0.00019452,3]
[351930556,1738847457703,-500.0,0.00019452,3]
[351930557,1738847457712,-500.0,0.00019452,3]
[351930558,1738847457722,-500.0,0.00019452,3]
[351930559,1738847457733,-500.0,0.00019452,3]
[351930560,1738847457742,-500.0,0.00019452,3]
[351930561,1738847457752,-500.0,0.00019452,3]
[351930562,1738847457762,-555.46,0.00019452,3]
[351930563,1738847457771,-543.5,0.00019452,3]
[351930564,1738847457782,-641.97,0.00019452,3]
[351930565,1738847457792,-506.74647439,0.00019452,3]
[351930566,1738847457802,-500.0,0.00019452,3]
[351930567,1738847457812,-500.0,0.00019452,3]
[351930568,1738847457822,-500.0,0.00019452,3]
[351930569,1738847457832,-595.4,0.00019452,3]
[351930570,1738847457842,-500.0,0.00019452,3]
[351930571,1738847457852,-1122.73,0.00019452,3]
[351930572,1738847457862,-500.0,0.00019452,3]
[351930573,1738847457872,-500.0,0.00019452,3]
[351930574,1738847457881,-500.0,0.00019452,3]
[351930575,1738847457891,-500.0,0.00019452,3]
[351930576,1738847457903,-538.36711023,0.00019452,3]
[351930577,1738847457912,-500.0,0.00019452,3]
[351930578,1738847457923,-543.88,0.00019452,3]
[351930579,1738847457934,-500.0,0.00019452,2]
[351930580,1738847457943,-500.0,0.00019452,3]
[351930581,1738847457954,-500.0,0.00019452,3]
[351930582,1738847457964,-583.05191591,0.00019452,3]
[351930583,1738847457974,-500.0,0.00019452,3]
[351930584,1738847457987,-950.26,0.00019452,3]
[351930585,1738847458002,-500.0,0.00019452,3]
[351930586,1738847458012,-504.87751425,0.00019452,3]
[351930587,1738847458022,-673.94,0.00019452,3]
[351930588,1738847458031,-500.0,0.00019452,3]
[351930589,1738847458041,-500.0,0.00019452,3]
[351930590,1738847458050,-712.06,0.00019452,3]
[351930591,1738847458060,-500.0,0.00019452,3]
[351930592,1738847458070,-770.76,0.00019452,3]
[351930593,1738847458080,-500.0,0.00019452,3]
[351930594,1738847458091,-503.34238413,0.00019452,3]
[351930595,1738847458100,-405.36660524,0.00019452,3]
[351930596,1738847458111,-539.14,0.00019452,3]
[351930597,1738847458120,-500.0,0.00019452,3]
[351930598,1738847458133,-500.0,0.00019452,3]
[351930599,1738847458143,-500.0,0.00019452,3]
[351930600,1738847458152,-500.0,0.00019452,3]
[351930601,1738847458162,-500.0,0.00019452,3]
[351930602,1738847458172,-500.0,0.00019452,3]
[351930603,1738847458182,-500.0,0.00019452,3]
[351930604,1738847458192,-1247.48,0.00019452,3]
[351930605,1738847458202,-504.93,0.00019452,3]
[351930606,1738847458211,-500.0,0.00019452,3]
[351930607,1738847458221,-500.0,0.00019452,3]
[351930608,1738847458232,-500.0,0.00019452,3]
[351930609,1738847458243,-500.0,0.00019452,3]
[351930610,1738847458253,-680.54,0.00019452,3]
[351930611,1738847458262,-500.0,0.00019452,3]
[351930612,1738847458272,-500.0,0.00019452,3]
[351930613,1738847458282,-500.0,0.00019452,3]
[351930614,1738847458291,-894.05,0.00019452,3]
[351930615,1738847458300,-500.0,0.00019452,3]
[351930616,1738847458310,-500.0,0.00019452,3]
[351930617,1738847458320,-660.05,0.00019452,3]
[351930618,1738847458330,-500.0,0.00019452,3]
[351930619,1738847458340,-500.0,0.00019452,3]
[351930620,1738847458350,-528.52,0.00019452,3]
[351930621,1738847458359,-500.0,0.00019452,3]
[351930622,1738847458369,-500.0,0.00019452,3]
[351930623,1738847458378,-500.0,0.00019452,3]
[351930624,1738847458388,-500.0,0.00019452,3]
[351930625,1738847458398,-753.03,0.00019452,3]
[351930626,1738847458408,-316.7150687,0.00019452,3]
[351930627,1738847458417,-961.38,0.00019452,3]
[351930628,1738847458427,-500.0,0.00019452,3]
[351930629,1738847458435,-602.62,0.00019452,3]
[351930630,1738847458445,-670.29,0.00019452,3]
[351930631,1738847458455,-500.0,0.00019452,3]
[351930632,1738847458464,-500.0,0.00019452,3]
[351930633,1738847458474,-500.0,0.00019452,3]
[351930634,1738847458485,-500.0,0.00019452,3]
[351930635,1738847458494,-501.6,0.00019452,3]
[351930636,1738847458504,-786.18,0.00019452,3]
[351930637,1738847458514,-584.08131352,0.00019452,3]
[351930638,1738847458524,-500.0,0.00019452,3]
[351930639,1738847458534,-500.0,0.00019452,3]
[351930640,1738847458543,-500.0,0.00019452,3]
[351930641,1738847458553,-500.0,0.00019452,3]
[351930642,1738847458564,-586.05,0.00019452,3]
[351930643,1738847458574,-500.0,0.00019452,3]
[351930644,1738847458585,-598.18,0.00019452,3]
[351930645,1738847458595,-500.0,0.00019452,3]
[351930646,1738847458605,-500.0,0.00019452,3]
[351930647,1738847458614,-234.11780231,0.00019452,3]
[351930648,1738847458623,-500.0,0.00019452,3]
[351930649,1738847458632,-500.0,0.00019452,3]
[351930650,1738847458642,-378.35989729,0.00019452,3]
[351930651,1738847458652,-500.0,0.00019452,3]
[351930652,1738847458661,-500.0,0.00019452,3]
[351930653,1738847458671,-500.0,0.00019452,3]
[351930654,1738847458680,-716.21,0.00019452,3]
[351930655,1738847458689,-500.0,0.00019452,3]
[351930656,1738847458699,-500.0,0.00019452,3]
[351930657,1738847458708,-500.0,0.00019452,3]
[351930658,1738847458718,-500.0,0.00019452,3]
[351930659,1738847458727,-500.0,0.00019452,3]
[351930660,1738847458736,-500.0,0.00019452,3]
[351930661,1738847458746,-825.75,0.00019452,3]
[351930662,1738847458755,-597.02,0.00019452,3]
[351930663,1738847458764,-623.01911741,0.00019452,3]
[351930664,1738847458774,-911.33,0.00019452,3]
[351930665,1738847458783,-500.0,0.00019452,3]
[351930666,1738847458793,-500.0,0.00019452,3]
[351930667,1738847458803,-500.0,0.00019452,3]
[351930668,1738847458812,-500.0,0.00019452,3]
[351930669,1738847458821,-500.0,0.00019452,3]
[351930670,1738847458831,-859.38,0.00019452,3]
[351930671,1738847458840,-500.0,0.00019452,3]
[351930672,1738847458850,-500.0,0.00019452,3]
[351930673,1738847458859,-500.0,0.00019452,3]
[351930674,1738847458868,-500.0,0.00019452,3]
[351930675,1738847458879,-500.0,0.00019452,3]
[351930676,1738847458888,-502.94547709,0.00019452,3]
[351930677,1738847458899,-500.0,0.00019452,3]
[351930678,1738847458913,-500.0,0.00019452,3]
[351930679,1738847458923,-752.97,0.00019452,3]
[351930680,1738847458932,-500.0,0.00019452,3]
[351930681,1738847458942,-500.0,0.00019452,3]
[351930682,1738847458952,-500.0,0.00019452,3]
[351930683,1738847458961,-500.0,0.00019452,3]
[351930684,1738847458970,-500.0,0.00019452,3]
[351930685,1738847458981,-506.9174051,0.00019452,3]
[351930686,1738847458991,-646.97828655,0.00019452,3]
[351930687,1738847459002,-500.0,0.00019452,3]
[351930688,1738847459014,-500.0,0.00019452,3]
[351930689,1738847459024,-503.6412976,0.00019452,3]
[351930690,1738847459035,-817.51,0.00019452,3]
[351930691,1738847459044,-839.52,0.00019452,3]
[351930692,1738847459055,-629.07043743,0.00019452,3]
[351930693,1738847459065,-500.0,0.00019452,3]
[351930694,1738847459074,-690.2,0.00019452,3]
[351930695,1738847459083,-500.0,0.00019452,3]
[351930696,1738847459093,-934.43,0.00019452,3]
[351930697,1738847459102,-501.29706162,0.00019452,3]
[351930698,1738847459112,-500.0,0.00019452,3]
[351930699,1738847459121,-500.0,0.00019452,3]
[351930700,1738847459131,-500.0,0.00019452,3]
[351930701,1738847459140,-500.0,0.00019452,3]
[351930702,1738847459149,-500.0,0.00019452,3]
[351930703,1738847459158,-500.0,0.00019452,3]
[351930704,1738847459168,-504.58460537,0.00019452,3]
[351930705,1738847459178,-500.0,0.00019452,3]
[351930706,1738847459188,-534.59,0.00019452,3]
[351930707,1738847459197,-427.65669243,0.00019452,3]
[351930708,1738847459207,-893.08,0.00019452,3]
[351930709,1738847459216,-151.0,0.00019452,2]
[351930710,1738847459225,-151.0,0.00019452,2]
[351930711,1738847459236,-500.0,0.00019452,3]
[351930712,1738847459245,-867.69,0.00019452,3]
[351930713,1738847459254,-500.0,0.00019452,3]
[351930714,1738847459264,-521.28698494,0.00019452,3]
[351930715,1738847459273,-500.0,0.00019452,3]
[351930716,1738847459283,-500.0,0.00019452,3]
[351930717,1738847459292,-500.0,0.00019452,3]
[351930718,1738847459302,-822.52,0.00019452,3]
[351930719,1738847459312,-515.73,0.00019452,3]
[351930720,1738847459322,-500.0,0.00019452,3]
[351930721,1738847459331,-829.26,0.00019452,3]
[351930722,1738847459341,-500.0,0.00019452,3]
[351930723,1738847459351,-500.0,0.00019452,3]
[351930724,1738847459360,-500.0,0.00019452,3]
[351930725,1738847459370,-506.29,0.00019452,3]
[351930726,1738847459379,-500.0,0.00019452,3]
[351930727,1738847459389,-500.0,0.00019452,3]
[351930728,1738847459399,-793.69,0.00019452,3]
[351930729,1738847459408,-678.61,0.00019452,3]
[351930730,1738847459418,-500.0,0.00019452,3]
[351930731,1738847459427,-500.0,0.00019452,3]
[351930732,1738847459437,-525.8,0.00019452,3]
[351930733,1738847459447,-573.80723182,0.00019452,3]
[351930734,1738847459456,-500.0,0.00019452,3]
[351930735,1738847459466,-500.0,0.00019452,3]
[351930736,1738847459475,-500.0,0.00019452,3]
[351930737,1738847459487,-500.0,0.00019452,3]
[351930738,1738847459497,-614.19,0.00019452,3]
[351930739,1738847459507,-500.0,0.00019452,3]
[351930740,1738847459516,-305.71605264,0.00019452,3]
[351930741,1738847459525,-763.82,0.00019452,3]
[351930742,1738847459535,-500.0,0.00019452,3]
[351930743,1738847459545,-500.0,0.00019452,3]
[351930744,1738847459555,-794.8,0.00019452,3]
[351930745,1738847459564,-500.0,0.00019452,3]
[351930746,1738847459575,-500.0,0.00019452,3]
[351930747,1738847459586,-500.0,0.00019452,3]
[351930748,1738847459595,-505.17239673,0.00019452,3]
[351930749,1738847459606,-500.0,0.00019452,3]
[351930750,1738847459616,-500.0,0.00019452,3]
[351930751,1738847459784,-503.63,0.00019452,3]
[351930752,1738847459794,-500.0,0.00019452,3]
[351930753,1738847459805,-640.3,0.00019452,3]
[351930754,1738847459815,-500.0,0.00019452,3]
[351930755,1738847459824,-500.0,0.00019452,3]
[351930756,1738847459834,-500.0,0.00019452,3]
[351930757,1738847459843,-500.0,0.00019452,3]
[351930758,1738847459853,-500.0,0.00019452,3]
[351930759,1738847459862,-500.0,0.00019452,3]
[351930760,1738847459871,-500.0,0.00019452,3]
[351930761,1738847459882,-369.03435545,0.00019452,3]
[351930762,1738847459891,-698.21,0.00019452,3]
[351930763,1738847459903,-545.12,0.00019452,3]
[351930764,1738847459913,-1094.9,0.00019452,3]
[351930765,1738847459922,-500.0,0.00019452,3]
[351930766,1738847459932,-500.0,0.00019452,3]
[351930767,1738847459942,-500.0,0.00019452,3]
[351930768,1738847459953,-500.0,0.00019452,3]
[351930769,1738847459963,-500.0,0.00019452,3]
[351930770,1738847459972,-963.48,0.00019452,3]
[351930771,1738847459985,-500.0,0.00019452,3]
[351930772,1738847459995,-634.23,0.00019452,3]
[351930773,1738847460005,-500.0,0.00019452,3]
[351930774,1738847460015,-500.0,0.00019452,3]
[351930775,1738847460025,-500.0,0.00019452,3]
[351930776,1738847460034,-500.0,0.00019452,3]
[351930777,1738847460045,-500.0,0.00019452,3]
[351930778,1738847460055,-500.0,0.00019452,3]
[351930779,1738847460064,-527.78087388,0.00019452,3]
[351930780,1738847460074,-500.0,0.00019452,3]
[351930781,1738847460085,-638.85,0.00019452,3]
[351930782,1738847460094,-1207.59,0.00019452,3]
[351930783,1738847460104,-894.07,0.00019452,3]
[351930784,1738847460114,-500.0,0.00019452,3]
[351930785,1738847460123,-500.0,0.00019452,3]
[351930786,1738847460132,-500.0,0.00019452,3]
[351930787,1738847460142,-1081.55,0.00019452,3]
[351930788,1738847460151,-500.0,0.00019452,3]
[351930789,1738847460160,-500.0,0.00019452,3]
[351930790,1738847460170,-591.92,0.00019452,3]
[351930791,1738847460179,-500.0,0.00019452,3]
[351930792,1738847460189,-500.0,0.00019452,3]
[351930793,1738847460199,-949.11,0.00019452,3]
[351930794,1738847460209,-1268.08,0.00019452,3]